fUST/lending_fUST_20240326
["ID","MTS","AMOUNT","RATE_DAILY","PERIOD"]
[320510423,1711405124473,180.22166268,0.00018,2]
[320510424,1711405128124,340.687846,0.00017144,2]
[320510425,1711405130369,183.43092383,0.00017905,2]
[320510426,1711405130440,1664.0362279,0.00018,2]
[320510427,1711405139394,155.07753877,0.00018,2]
[320510428,1711405144559,3509.19508101,0.00018,2]
[320510429,1711405148311,1922.02642136,0.00018,2]
[320510430,1711405153821,1044.34324952,0.00018,2]
[320510431,1711405154542,405.72925592,0.00018,2]
[320510432,1711405156905,608.98515856,0.00018,2]
[320510433,1711405159133,187.30483325,0.00018,2]
[320510434,1711405161122,1956.79393674,0.00018,2]
[320510435,1711405164871,302.59359524,0.00018,2]
[320510436,1711405172285,500.0,0.00020056,7]
[320510437,1711405173064,500.0,0.00020056,7]
[320510438,1711405173868,500.0,0.00020056,7]
[320510439,1711405185866,183.72364066,0.00017942,2]
[320510440,1711405223797,2261.2297371,0.00017037,2]
[320510441,1711405289916,1888.81529834,0.00018,2]
[320510442,1711405292920,864.38002108,0.00018,2]
[320510443,1711405415858,1044.34324952,0.00018,2]
[320510444,1711405482148,206.39942937,0.00017944,2]
[320510445,1711405513749,1377.5333926,0.00017035,2]
[320510453,1711405559339,291.35313108,0.00018,2]
[320510454,1711405578223,183.72364066,0.00017933,2]
[320510465,1711405641009,160.50205836,0.00017933,2]
[320510466,1711405650314,3287.3647157,0.00017035,2]
[320510467,1711405670822,-1044.34324952,0.00018002,2]
[320510468,1711405670855,-291.35313108,0.00018003,2]
[320510469,1711405670891,-2630.70221443,0.00018005,2]
[320510470,1711405683322,1000.99446522,0.00018,2]
[320510471,1711405689888,-10000.0,0.00018032,2]
[320510472,1711405694107,-10000.0,0.00018032,2]
[320510473,1711405702217,-9800.0,0.00018032,2]
[320510474,1711405716892,-9600.0,0.00018032,2]
[320510475,1711405741281,-1044.34324952,0.00018036,2]
[320510476,1711405741315,-290.68320922,0.00018036,2]
[320510477,1711405741349,-1761.17713097,0.00018037,2]
[320510478,1711405741382,-242.1979612,0.00018037,2]
[320510479,1711405741416,-20000.0,0.0001804,2]
[320510480,1711405741449,-271.15220871,0.00018042,2]
[320510481,1711405741486,-270.55201027,0.00018042,2]
[320510482,1711405741519,-274.55086388,0.00018042,2]
[320510483,1711405741552,-277.70923675,0.00018042,2]
[320510484,1711405741585,-156.97393793,0.00018042,2]
[320510485,1711405741618,-245.12697935,0.00018042,2]
[320510486,1711405741651,-171.41611129,0.00018042,2]
[320510487,1711405741684,-288.47550235,0.00018042,2]
[320510488,1711405741719,-214.73786596,0.00018042,2]
[320510489,1711405741752,-956.68110623,0.00018042,2]
[320510490,1711405741785,-192.09614906,0.00018042,2]
[320510491,1711405741889,-205.27707627,0.00018042,2]
[320510492,1711405741924,-664.83646324,0.00018042,2]
[320510493,1711405741958,-1570.60595844,0.00018042,2]
[320510494,1711405741993,-155.35319388,0.00018042,2]
[320510495,1711405742026,-304.95131354,0.00018042,2]
[320510496,1711405742059,-322.50861399,0.00018042,2]
[320510497,1711405742092,-1020.16589285,0.00018042,2]
[320510498,1711405742129,-300.67328513,0.00018042,2]
[320510499,1711405742162,-297.75467997,0.00018042,2]
[320510502,1711405760634,-18001.39215112,0.00018041,2]
[320510503,1711405760674,-28.1801674,0.00018042,2]
[320510504,1711405760708,-488.09509367,0.00018042,2]
[320510505,1711405760742,-343.90502175,0.00018042,2]
[320510506,1711405760776,-180.14012251,0.00018042,2]
[320510507,1711405760810,-207.54714684,0.00018042,2]
[320510508,1711405760844,-490.84480298,0.00018042,2]
[320510509,1711405760879,-1532.73924405,0.00018042,2]
[320510510,1711405760912,-406.45660314,0.00018042,2]
[320510511,1711405760946,-608.51001655,0.00018042,2]
[320510512,1711405760980,-302.44791801,0.00018042,2]
[320510513,1711405761014,-229.98454267,0.00018042,2]
[320510514,1711405761047,-1838.75641273,0.00018042,2]
[320510515,1711405761080,-155.77950919,0.00018043,2]
[320510516,1711405761114,-199.9507777,0.00018043,2]
[320510517,1711405761150,-20000.0,0.00018043,2]
[320510518,1711405761184,-4985.27046969,0.00018043,2]
[320510519,1711405771265,-1044.34324952,0.00018041,2]
[320510520,1711405771300,-15014.72953031,0.00018043,2]
[320510521,1711405771335,-20000.0,0.00018043,2]
[320510522,1711405771372,-13940.92722017,0.00018043,2]
[320510529,1711405779312,-6059.07277983,0.00018043,2]
[320510530,1711405779346,-20000.0,0.00018043,2]
[320510531,1711405779380,-3940.92722017,0.00018043,2]
[320510532,1711405788620,-1044.34324952,0.00018042,2]
[320510533,1711405788655,-16059.07277983,0.00018043,2]
[320510534,1711405788691,-12896.58397065,0.00018043,2]
[320510560,1711405832217,-1165.9260354,0.00018041,2]
[320510561,1711405832226,-1044.34324952,0.00018042,2]
[320510563,1711405832237,-7103.41602935,0.00018043,2]
[320510565,1711405832247,-20000.0,0.00018043,2]
[320510566,1711405832257,-20000.0,0.00018043,2]
[320510568,1711405832266,-20000.0,0.00018043,2]
[320510570,1711405832275,-20000.0,0.00018043,2]
[320510572,1711405832284,-20000.0,0.00018043,2]
[320510573,1711405832295,-20000.0,0.00018043,2]
[320510575,1711405832304,-20000.0,0.00018043,2]
[320510577,1711405832313,-20000.0,0.00018043,2]
[320510579,1711405832323,-20000.0,0.00018043,2]
[320510580,1711405832332,-11584.84365441,0.00018043,2]
[320511106,1711405838278,-1407.04499592,0.00018043,2]
[320511107,1711405838290,-5202.0466242,0.00018043,2]
[320511108,1711405838305,-1806.06472547,0.00018043,2]
[320511109,1711405838446,-76.59888543,0.00018043,2]
[320511110,1711405838459,-453.22118573,0.00018043,2]
[320511111,1711405838470,-1781.74842335,0.00018043,2]
[320511113,1711405838482,-17688.43150549,0.00018043,2]
[320511114,1711405838491,-20000.0,0.00018043,2]
[320511116,1711405838500,-20000.0,0.00018043,2]
[320511118,1711405838509,-20000.0,0.00018043,2]
[320511120,1711405838518,-4013.23877442,0.00018043,2]
[320511122,1711405838527,-27717.6828029,0.00018044,2]
[320511124,1711405838539,-2798.80336675,0.00018044,2]
[320511126,1711405838551,-55579.00052753,0.00018044,2]
[320511128,1711405838563,-10550.60007685,0.00018044,2]
[320511131,1711405838574,-32520.28589062,0.00018044,2]
[320511415,1711405841344,-7420.79387168,0.00018044,2]
[320511417,1711405841356,-8441.76,0.00018044,2]
[320511472,1711405841871,-455.6054827,0.00018044,2]
[320512942,1711405865378,1156.76634307,0.00017863,2]
[320513558,1711405872597,185.75948646,0.00017944,2]
[320513642,1711405873416,28444.51394341,0.00017863,2]
[320514356,1711405881236,305.02961675,0.00017862,2]
[320515083,1711405889150,305.02961675,0.00017862,2]
[320515409,1711405897268,305.02961675,0.00017862,2]
[320515410,1711405905087,4103.03955146,0.00017862,2]
[320515411,1711405924339,19065.22561245,0.00017862,2]
[320515412,1711405931238,15987.48578878,0.00017862,2]
[320515413,1711405942301,236.8478589,0.00017862,2]
[320515414,1711405943302,202.47214646,0.00017862,2]
[320515415,1711405944313,19065.22561245,0.00017862,2]
[320515416,1711405951238,2147.57044857,0.00017862,2]
[320515417,1711405962294,228.1521411,0.00017862,2]
[320515418,1711405962335,19065.22561245,0.00017862,2]
[320515419,1711405980287,163.38669525,0.00017862,2]
[320515420,1711405980319,222.9947515,0.00017862,2]
[320515421,1711405980372,291.35313108,0.00018,2]
[320515422,1711405987000,11669.4555525,0.00017087,2]
[320515423,1711405991427,305.09083774,0.00018,2]
[320515424,1711406002818,281.7045139,0.00017043,2]
[320515425,1711406018311,186.836242,0.00017043,2]
[320515426,1711406025825,-1044.34324952,0.00018001,2]
[320515427,1711406025849,-47377.43878495,0.00018002,2]
[320515428,1711406025872,-2733.32809372,0.00018003,2]
[320515429,1711406028206,-17266.67190628,0.00018003,2]
[320515430,1711406028229,-290.68320922,0.00018041,2]
[320515431,1711406028252,-304.89009255,0.00018041,2]
[320515432,1711406028276,-1532.73924405,0.00018042,2]
[320515433,1711406028298,-608.51001655,0.00018042,2]
[320515434,1711406028321,-300.67328513,0.00018042,2]
[320515435,1711406028343,-171.41611129,0.00018042,2]
[320515436,1711406028365,-2630.94438243,0.00018042,2]
[320515437,1711406028387,-214.73786596,0.00018042,2]
[320515438,1711406028410,-155.35319388,0.00018042,2]
[320515439,1711406028431,-343.90502175,0.00018042,2]
[320515440,1711406028453,-192.09614906,0.00018042,2]
[320515441,1711406028477,-1020.16589285,0.00018042,2]
[320515442,1711406028500,-288.47550235,0.00018042,2]
[320515443,1711406028522,-302.44791801,0.00018042,2]
[320515444,1711406028544,-156.97393793,0.00018042,2]
[320515445,1711406028565,-245.12697935,0.00018042,2]
[320515446,1711406028587,-229.98454267,0.00018042,2]
[320515447,1711406028610,-488.09509367,0.00018042,2]
[320515448,1711406028632,-270.55201027,0.00018042,2]
[320515449,1711406028655,-277.70923675,0.00018042,2]
[320515450,1711406028677,-325.93484737,0.00018042,2]
[320515451,1711406028699,-664.83646324,0.00018042,2]
[320515452,1711406028723,-274.55086388,0.00018042,2]
[320515453,1711406028752,-271.15220871,0.00018042,2]
[320515454,1711406028774,-490.84480298,0.00018042,2]
[320515455,1711406028797,-956.68110623,0.00018042,2]
[320515456,1711406028819,-207.54714684,0.00018042,2]
[320515457,1711406028841,-1570.60595844,0.00018042,2]
[320515458,1711406028863,-322.50861399,0.00018042,2]
[320515459,1711406028884,-155.77950919,0.00018042,2]
[320515460,1711406028907,-242.1979612,0.00018042,2]
[320515461,1711406028930,-205.27707627,0.00018042,2]
[320515462,1711406028953,-199.9507777,0.00018042,2]
[320515463,1711406028978,-1838.75641273,0.00018042,2]
[320515464,1711406029003,-1761.17713097,0.00018042,2]
[320515465,1711406029122,-406.45660314,0.00018042,2]
[320515466,1711406029143,-180.14012251,0.00018042,2]
[320515467,1711406029165,-13788.5609308,0.00018043,2]
[320515468,1711406032111,-6211.4390692,0.00018043,2]
[320515469,1711406032136,-20000.0,0.00018043,2]
[320515470,1711406032159,-20000.0,0.00018043,2]
[320515471,1711406032182,-4943.67105899,0.00018043,2]
[320515472,1711406035337,-15056.32894101,0.00018043,2]
[320515473,1711406035360,-20000.0,0.00018043,2]
[320515474,1711406035383,-16098.78118718,0.00018043,2]
[320515475,1711406038089,-37311.70096651,0.00018042,2]
[320515476,1711406038114,-3901.21881282,0.00018043,2]
[320515477,1711406038141,-9942.19034886,0.00018043,2]
[320515478,1711406040789,-2954.39362179,0.00018043,2]
[320515479,1711406040815,-48200.7165064,0.00018044,2]
[320515480,1711406042886,-1044.34324952,0.00018042,2]
[320515481,1711406042911,-50110.76687867,0.00018044,2]
[320515482,1711406045659,-51155.11012819,0.00018044,2]
[320515483,1711406047821,-51155.11012819,0.00018044,2]
[320515484,1711406048845,-51155.11012819,0.00018044,2]
[320515485,1711406049703,-51155.11012819,0.00018044,2]
[320515486,1711406050602,-51155.11012819,0.00018044,2]
[320515487,1711406051478,-51155.11012819,0.00018044,2]
[320515488,1711406052379,-51155.11012819,0.00018044,2]
[320515489,1711406053281,-51155.11012819,0.00018044,2]
[320515490,1711406054140,-51155.11012819,0.00018044,2]
[320515491,1711406055082,-51155.11012819,0.00018044,2]
[320515492,1711406055968,-51155.11012819,0.00018044,2]
[320515493,1711406057121,-34184.5959526,0.00018044,2]
[320515494,1711406057144,-151.133521,0.00018044,2]
[320515495,1711406057167,-151.0,0.00018044,2]
[320515496,1711406057191,-159.019086,0.00018044,2]
[320515497,1711406057215,-411.596504,0.00018044,2]
[320515498,1711406057239,-159.019086,0.00018044,2]
[320515499,1711406057262,-411.596504,0.00018044,2]
[320515500,1711406057285,-151.0,0.00018044,2]
[320515501,1711406057308,-531.283981,0.00018044,2]
[320515502,1711406057330,-531.283981,0.00018044,2]
[320515503,1711406057354,-538.475254,0.00018044,2]
[320515504,1711406057378,-538.475254,0.00018044,2]
[320515505,1711406057401,-155.14701896,0.00018044,2]
[320515506,1711406057426,-185.75948638,0.00018217,2]
[320515507,1711406057448,-185.75948638,0.0001849,2]
[320515508,1711406057470,-2000.0,0.00018529,2]
[320515509,1711406057493,-185.75948638,0.00018764,2]
[320515510,1711406057516,-1295.48914981,0.000189,2]
[320515511,1711406057539,-155.11012819,0.00019,2]
[320515512,1711406072120,155.10081553,0.00019,2]
[320515513,1711406092112,231.31902963,0.00019,2]
[320515514,1711406097315,1422.89560842,0.0001881,2]
[320515515,1711406157265,4890.5605083,0.0001881,2]
[320515516,1711406159255,2373.73028661,0.00018622,2]
[320515517,1711406168309,263.46693107,0.00020396,7]
[320515518,1711406182225,-1044.34324952,0.00018621,2]
[320515519,1711406182256,-2798.68475684,0.00018622,2]
[320515520,1711406182281,-300.0,0.00018809,2]
[320515521,1711406182309,-45792.9085887,0.0001881,2]
[320515522,1711406182336,-1219.17353313,0.0001881,2]
[320515523,1711406190264,263.46693107,0.00020396,7]
[320515524,1711406208256,247.20514135,0.00020396,7]
[320515525,1711406214260,-17838.67939991,0.0001881,2]
[320515526,1711406214284,-500.0,0.0001881,2]
[320515527,1711406214309,-155.16506105,0.0001881,2]
[320515528,1711406214336,-327.26860119,0.0001881,2]
[320515529,1711406216067,160.87070723,0.00018809,2]
[320515530,1711406229172,1500.0,0.000185,2]
[320515531,1711406255925,-415.55300892,0.000185,2]
[320515532,1711406255951,-45792.9085887,0.000185,2]
[320515533,1711406285694,-281.08704013,0.00018499,2]
[320515534,1711406285722,-45792.9085887,0.000185,2]
[320515535,1711406285750,-199.07157888,0.000185,2]
[320515536,1711406342882,-5168.48857907,0.00018315,2]
[320515537,1711406342908,-45792.9085887,0.000185,2]
[320515538,1711406350225,193.71296042,0.00018314,2]
[320515539,1711406375519,1607.0644234,0.00017977,2]
[320515540,1711406413295,45792.9085887,0.00017977,2]
[320515541,1711406429298,45792.9085887,0.00017977,2]
[320515542,1711406445323,3773.1228087,0.00017977,2]
[320515543,1711406626730,160.50205833,0.00017878,2]
[320515544,1711406691840,8839.49794167,0.00017878,2]
[320515545,1711406692321,-12000.0,0.00017878,2]
[320515546,1711406692432,-12000.0,0.00017878,2]
[320515547,1711406692469,-12000.0,0.00017878,2]
[320515548,1711406692813,-953.41064703,0.00017878,2]
[320515549,1711406709828,11046.58935297,0.00017878,2]
[320515550,1711406709851,12000.0,0.00017878,2]
[320515551,1711406710502,-3947.64061243,0.00017878,2]
[320515552,1711406710588,-80.56409413,0.00017878,2]
[320515553,1711406822106,3867.0765183,0.00017674,2]
[320515554,1711406822129,3947.64061243,0.00017674,2]
[320515555,1711406822152,1722.28766467,0.00017674,2]
[320515572,1711406882706,2044.7333689,0.00017791,2]
[320515573,1711406897533,160.50205833,0.00017835,2]
[320515574,1711406928017,20.11752053,0.00016948,2]
[320515575,1711406928042,178.77156747,0.00016948,2]
[320515608,1711407032449,-155.14583709,0.0001792,2]
[320515611,1711407032462,-270.55201027,0.0001792,2]
[320515614,1711407032471,-155.14117847,0.00017921,2]
[320515617,1711407032482,-155.14117847,0.00017921,2]
[320515620,1711407032492,-2605.4070795,0.00017921,2]
[320515624,1711407032502,-560.02439842,0.00017922,2]
[320515656,1711407032658,-1044.34324952,0.00017923,2]
[320515661,1711407032682,-28821.05469757,0.00017932,2]
[320515663,1711407032691,-87142.66172075,0.00017933,2]
[320516441,1711407043801,-1044.34324952,0.00017919,2]
[320516443,1711407043810,-1675.56206754,0.00017933,2]
[320516450,1711407043873,-57727.99049025,0.00017933,2]
[320519499,1711407260842,2319.45874615,0.000125,2]
[320519502,1711407562567,597.4111035,0.0001705,2]
[320519509,1711407837121,198.889088,0.00016978,2]
[320519648,1711408238757,-155.14739002,0.00017887,2]
[320519649,1711408238766,-155.14739002,0.00017888,2]
[320519651,1711408238776,-1235.20205978,0.00017889,2]
[320519654,1711408238787,-338.39812084,0.00017889,2]
[320519655,1711408238797,-155.14739002,0.00017889,2]
[320519657,1711408238806,-155.14739002,0.00017889,2]
[320519659,1711408238815,-160.50205833,0.000179,2]
[320519661,1711408238825,-173.7637923,0.000179,2]
[320519663,1711408238835,-1888.81529834,0.00017931,2]
[320519665,1711408238845,-286.62399524,0.00017932,2]
[320519667,1711408238854,-6500.0,0.00017932,2]
[320519669,1711408238864,-7126.23566497,0.00017933,2]
[320519961,1711408243622,-8892.20952995,0.00017933,2]
[320519974,1711408243738,-22467.84,0.00017933,2]
[320519976,1711408243749,-8273.43981964,0.00017933,2]
[320523695,1711408419772,653.11010731,0.00016931,2]
[320523696,1711408419808,9000.0,0.00016931,2]
[320523697,1711408419840,3707.07634899,0.00016931,2]
[320523700,1711408559437,250.0,0.0001692,2]
[320523701,1711408609039,-548.82391045,0.00017885,2]
[320523702,1711408610405,-11.20048797,0.00017885,2]
[320523703,1711408610453,155.14739002,0.00017885,2]
[320523704,1711408612313,302.59359524,0.00017885,2]
[320523705,1711408631159,79.88243722,0.00017885,2]
[320523706,1711408631183,537.8545952,0.00017885,2]
[320523707,1711408631230,10.96931525,0.00017885,2]
[320523708,1711408631252,144.17807477,0.00017885,2]
[320523709,1711408637530,404.64583568,0.00017884,2]
[320523710,1711408637556,548.82391045,0.00017884,2]
[320523711,1711408637580,133.70461814,0.00017884,2]
[320523712,1711408640304,393.39288516,0.00017885,2]
[320523713,1711408640327,527.0975033,0.00017885,2]
[320523714,1711408640900,-2188.6333663,0.00017885,2]
[320523715,1711408641121,-44.66598707,0.00017885,2]
[320523716,1711408641286,155.14739002,0.00017885,2]
[320523717,1711408658339,864.38002108,0.00017885,2]
[320523718,1711408663352,920.79514438,0.00017034,2]
[320523719,1711408753799,203.64482375,0.00016912,2]
[320523720,1711408753822,107.53806225,0.00016912,2]
[320523721,1711408770179,617.73703242,0.00017885,2]
[320523722,1711408772303,155.14739002,0.00017885,2]
[320523723,1711408777000,1301.46396623,0.00017885,2]
[320523724,1711408831943,6.74691538,0.00016924,2]
[320523725,1711408831967,2188.6333663,0.00016924,2]
[320523726,1711408831990,605.38229177,0.00016924,2]
[320523727,1711408832013,605.38229177,0.00016924,2]
[320523728,1711408832039,1065.43087699,0.00016924,2]
[320523729,1711408832063,178.71095309,0.00016924,2]
[320523733,1711408923346,886.7199239,0.00016931,2]
[320523734,1711408923377,916.8350592,0.00016931,2]
[320523743,1711409111920,-187.78507347,0.00017889,2]
[320523744,1711409111943,-305.09083774,0.00017889,2]
[320523745,1711409111965,-5151.62825255,0.0001789,2]
[320523746,1711409111987,-186.27860421,0.000179,2]
[320523747,1711409112010,-160.50205833,0.000179,2]
[320523751,1711409207135,186.27860421,0.000179,2]
[320523779,1711409252742,160.50205833,0.000179,2]
[320523784,1711409325403,311.182886,0.0001693,2]
[320523791,1711409416474,948.96798762,0.00017635,2]
[320523792,1711409425599,160.50205833,0.000179,2]
[320523815,1711409432024,-305.09083774,0.00017915,2]
[320523817,1711409432034,-187.30483325,0.00017916,2]
[320523819,1711409432043,-1573.60018062,0.00017917,2]
[320523821,1711409432053,-1478.45909339,0.00017918,2]
[320523823,1711409432062,-300.0,0.0001793,2]
[320523825,1711409432072,-1886.39734478,0.00017931,2]
[320523827,1711409432082,-559.17325147,0.00017931,2]
[320523829,1711409432092,-406.40178043,0.00017931,2]
[320523831,1711409432101,-273.94777488,0.00017931,2]
[320523833,1711409432111,-254.84078968,0.00017931,2]
[320523835,1711409432120,-259.63948407,0.00017931,2]
[320523837,1711409432130,-2523.92968757,0.00017931,2]
[320523839,1711409432140,-864.38002108,0.00017931,2]
[320523841,1711409432149,-172.16308491,0.00017931,2]
[320523843,1711409432159,-309.75026403,0.00017931,2]
[320523845,1711409432169,-1257.05528769,0.00017931,2]
[320523847,1711409432179,-192.09614906,0.00017931,2]
[320523849,1711409432188,-322.828959,0.00017931,2]
[320523851,1711409432198,-187.70475787,0.00017931,2]
[320523853,1711409432208,-155.15981461,0.00017931,2]
[320523855,1711409432222,-2718.73894654,0.00017931,2]
[320523857,1711409432235,-31.00240016,0.00017931,2]
[320523859,1711409432245,-405.49788746,0.00017932,2]
[320523861,1711409432258,-13102.49971238,0.00017933,2]
[320524039,1711409438251,-1.8287629,0.00017916,2]
[320524056,1711409438406,-337.29999998,0.00017916,2]
[320524165,1711409441467,-1139.33033051,0.00017916,2]
[320524167,1711409441477,-5460.66966949,0.00017933,2]
[320524170,1711409441489,-18175.49924973,0.00017933,2]
[320524663,1711409447433,920.79514438,0.00017034,2]
[320525349,1711409456244,-525.85256095,0.00017932,2]
[320525354,1711409456282,-57006.38268429,0.00017933,2]
[320525555,1711410286558,205.27707627,0.000179,2]
[320525556,1711410292059,920.79514438,0.000179,2]
[320525557,1711410311663,160.87070723,0.000179,2]
[320525624,1711410631936,-224.93105073,0.00017917,2]
[320525626,1711410631946,-291.35313108,0.00017918,2]
[320525628,1711410631955,-685.88747989,0.00017919,2]
[320525630,1711410631964,-326.05635795,0.00018,2]
[320525632,1711410631974,-1516.25930099,0.00018315,2]
[320525634,1711410631983,-636.44839938,0.00018517,2]
[320525636,1711410631993,-2028.26215697,0.000189,2]
[320525638,1711410632002,-2000.0,0.000191,2]
[320525640,1711410632012,-160.3225,0.00019178,2]
[320525642,1711410632024,-174.488239,0.00019178,2]
[320525644,1711410632034,-175.316707,0.00019178,2]
[320525647,1711410632044,-433.0564514,0.00019178,4]
[320525650,1711410632053,-195.2191546,0.00019178,2]
[320525653,1711410632063,-845.75418495,0.00019281,2]
[320525656,1711410632072,-620.82241997,0.00019442,2]
[320525659,1711410632082,-206.401,0.00019696,2]
[320525662,1711410632091,-2000.0,0.00019843,2]
[320525665,1711410632101,-6566.76171589,0.0001985,2]
[320525668,1711410632110,-242.38972345,0.00019898,2]
[320525671,1711410632120,-302.68806149,0.00019899,2]
[320525673,1711410632130,-160.50205833,0.000199,2]
[320525677,1711410632141,-2537.49311209,0.0002,2]
[320525679,1711410632150,-155.05484116,0.0002,2]
[320525683,1711410632162,-780.33195473,0.0002,2]
[320525686,1711410632171,-17491.8,0.0002,2]
[320525689,1711410632182,-1802.34595721,0.0002,2]
[320525692,1711410632192,-200.0,0.0002,2]
[320525694,1711410632201,-1536.7485306,0.0002,2]
[320525696,1711410632211,-194.35359503,0.0002,2]
[320525698,1711410632221,-275.7283,0.0002,2]
[320525699,1711410632231,-239.49533086,0.0002,2]
[320525700,1711410632241,-683.96804349,0.0002,2]
[320525701,1711410632251,-186.27860421,0.00020196,2]
[320525702,1711410632260,-186.27860421,0.00020198,2]
[320525703,1711410632272,-186.27860421,0.000202,2]
[320525704,1711410632281,-186.9143283,0.00020274,2]
[320525705,1711410632291,-223.23594782,0.00020296,2]
[320525706,1711410632300,-663.69585307,0.00020296,2]
[320525707,1711410632310,-180.22166268,0.00020296,2]
[320525708,1711410632319,-23375.78663395,0.00020296,2]
[320525751,1711410638330,-426.7671,0.00020296,2]
[320525971,1711410643048,-7532.8638737,0.00020296,2]
[320526229,1711410646101,-1347.68,0.00020296,2]
[320526788,1711410671962,7086.4970541,0.000179,2]
[320526796,1711410792697,294.30993584,0.000179,2]
[320526864,1711411832193,-560.02439842,0.0001864,2]
[320526865,1711411832203,-305.09083774,0.0001864,2]
[320526866,1711411832212,-1956.79393674,0.00018641,2]
[320526867,1711411832221,-326.05635795,0.00018642,2]
[320526868,1711411832230,-2857.9895009,0.00018655,2]
[320526869,1711411832242,-3227.7638544,0.00018655,2]
[320526870,1711411832251,-1402.17477131,0.000189,2]
[320526871,1711411832261,-174.488239,0.00019178,2]
[320526872,1711411832273,-425.31416892,0.00019281,2]
[320526919,1711411838096,-495.2029059,0.00019281,2]
[320526920,1711411838106,-834.9570941,0.00019364,2]
[320527178,1711411843194,-1165.0429059,0.00019364,2]
[320527179,1711411843204,-626.15708551,0.00019394,2]
[320527180,1711411843216,-683.96804349,0.0002,2]
[320527181,1711411843225,-780.33195473,0.00020194,2]
[320527182,1711411843235,-275.7283,0.00020196,2]
[320527183,1711411843245,-154.33031524,0.00020196,2]
[320527184,1711411843254,-2647.77105659,0.00020198,2]
[320527194,1711411846374,-453.36194527,0.00020198,2]
[320527195,1711411846383,-6520.03805473,0.00020198,2]
[320527196,1711411846440,-325.33863209,0.00020198,2]
[320527253,1711411973664,-180.0,0.0003,120]
[320527310,1711413032251,-155.14583709,0.00018483,2]
[320527312,1711413032260,-326.05635795,0.00018484,2]
[320527314,1711413032270,-155.14583709,0.00018485,2]
[320527315,1711413032279,-920.79514438,0.00018486,2]
[320527317,1711413032289,-7024.50061931,0.0001855,2]
[320527319,1711413032299,-200.82533312,0.000187,2]
[320527321,1711413032312,-200.82533311,0.000188,2]
[320527323,1711413032321,-221.856791,0.00019178,2]
[320527325,1711413032333,-500.0,0.00019364,2]
[320527327,1711413032343,-12071.73671592,0.00019364,2]
[320527330,1711413032355,-2000.0,0.00019455,2]
[320527334,1711413032365,-444.31856406,0.0001999,2]
[320527337,1711413032375,-2003.0,0.0002,2]
[320527340,1711413032387,-683.96804349,0.0002,2]
[320527343,1711413032397,-780.33195473,0.0002,2]
[320527346,1711413032408,-275.7283,0.00020091,2]
[320527349,1711413032418,-926.44438575,0.000201,2]
[320527352,1711413032430,-4721.6111472,0.000201,2]
[320527355,1711413032439,-3444.03044866,0.00020195,2]
[320527358,1711413032448,-500.0,0.00020196,2]
[320527361,1711413032458,-399.42263103,0.00020196,2]
[320527365,1711413032471,-100.57736897,0.00020196,2]
[320527367,1711413032480,-380.02827594,0.00020196,2]
[320527369,1711413032490,-500.0,0.00020196,2]
[320527371,1711413032500,-648.70210639,0.00020196,2]
[320527373,1711413032515,-500.0,0.00020196,2]
[320527376,1711413032525,-513.07525425,0.00020196,2]
[320527377,1711413032535,-355.00055372,0.00020196,2]
[320527519,1711413038277,-155.14583709,0.00018483,2]
[320527520,1711413038286,-144.99944628,0.00020196,2]
[320527521,1711413038296,-19498.74169003,0.00020197,2]
[320527522,1711413038309,-3012.96165646,0.00020197,2]
[320527532,1711413041444,-13049.99999999,0.00020197,2]
[320527533,1711413041456,-272.7,0.00020197,2]
[320527582,1711413043457,-224678.69768274,0.00020197,2]
[320527583,1711413043466,-353.1943086,0.00020197,2]
[320527584,1711413043476,-400.0,0.000202,2]
[320527585,1711413043486,-1536.7485306,0.000202,2]
[320527586,1711413043496,-167.095661,0.000202,2]
[320527587,1711413043506,-353.19430857,0.00020238,2]
[320527588,1711413043515,-353.19430857,0.00020279,2]
[320527589,1711413043524,-405.72925592,0.00020295,2]
[320527590,1711413043534,-187.78507347,0.00020295,2]
[320527591,1711413043544,-617.73703242,0.00020295,2]
[320527592,1711413043553,-305.77499223,0.00020295,2]
[320527593,1711413043563,-1955.99190053,0.00020295,2]
[320527594,1711413043572,-322.69074111,0.00020295,2]
[320527595,1711413043582,-559.74068277,0.00020295,2]